[Event "SS Manhem Chess Week GM and IM tournaments 2018"]
[Site "Molnlycke kulturhus, Biblioteksgatan 2, Molnlycke, Sweden"]
[Date "2018.08.13"]
[Round "4.6"]
[White "Vypkhaniuk, Ihor"]
[Black "Ernst, Thomas"]
[Result "1/2-1/2"]
[TimeControl "90 minutes for 40 moves + 30 minutes for the rest of the game + 30 seconds per move from move one."]
[WhiteTitle "FM"]
[BlackTitle "GM"]
[WhiteFideId "14112256"]
[BlackFideId "1700065"]
[WhiteElo "2357"]
[BlackElo "2346"]

1. c4 {[%clk 01:30:54]} {[%emt 00:00:05]} c5 {[%clk 01:30:25]} {[%emt
00:00:36]} 2. g3 {[%clk 01:29:30]} {[%emt 00:01:54]} g6 {[%clk 01:30:30]}
{[%emt 00:00:24]} 3. Bg2 {[%clk 01:29:51]} {[%emt 00:00:09]} Bg7 {[%clk
01:30:52]} {[%emt 00:00:08]} 4. Nc3 {[%clk 01:29:49]} {[%emt 00:00:32]} Nc6
{[%clk 01:31:12]} {[%emt 00:00:11]} 5. Nf3 {[%clk 01:30:04]} {[%emt 00:00:16]}
e6 {[%clk 01:30:57]} {[%emt 00:00:44]} 6. d3 {[%clk 01:29:36]} {[%emt
00:00:58]} d5 {[%clk 01:25:30]} {[%emt 00:05:56]} 7. Bg5 {[%clk 01:25:39]}
{[%emt 00:04:27]} Nge7 {[%clk 01:25:29]} {[%emt 00:00:32]} 8. Qc1 {[%clk
01:21:06]} {[%emt 00:05:03]} d4 {[%clk 01:21:12]} {[%emt 00:04:46]} 9. Nb5
{[%clk 01:13:15]} {[%emt 00:08:21]} O-O {[%clk 01:16:17]} {[%emt 00:05:26]} 10.
O-O {[%clk 01:10:28]} {[%emt 00:03:17]} e5 {[%clk 01:13:40]} {[%emt 00:03:05]}
11. Bh6 {[%clk 00:57:15]} {[%emt 00:13:45]} Bxh6 {[%clk 01:01:25]} {[%emt
00:12:45]} 12. Qxh6 {[%clk 00:57:40]} {[%emt 00:00:04]} Nf5 {[%clk 01:01:38]}
{[%emt 00:00:17]} 13. Qd2 {[%clk 00:56:12]} {[%emt 00:01:58]} a6 {[%clk
01:00:00]} {[%emt 00:02:09]} 14. Na3 {[%clk 00:55:33]} {[%emt 00:01:09]} Nd6
{[%clk 00:59:53]} {[%emt 00:00:35]} 15. Ng5 {[%clk 00:50:33]} {[%emt 00:05:31]}
Bf5 {[%clk 00:57:42]} {[%emt 00:02:41]} 16. Nc2 {[%clk 00:44:22]} {[%emt
00:06:42]} a5 {[%clk 00:38:12]} {[%emt 00:20:00]} 17. Bxc6 {[%clk 00:33:30]}
{[%emt 00:11:22]} bxc6 {[%clk 00:38:32]} {[%emt 00:00:10]} 18. e4 {[%clk
00:32:05]} {[%emt 00:01:55]} dxe3 {[%clk 00:26:08]} {[%emt 00:12:55]} 19. Qxe3
{[%clk 00:32:22]} {[%emt 00:00:13]} f6 {[%clk 00:26:13]} {[%emt 00:00:25]} 20.
Ne4 {[%clk 00:30:39]} {[%emt 00:02:12]} Bxe4 {[%clk 00:24:55]} {[%emt
00:01:49]} 21. dxe4 {[%clk 00:30:46]} {[%emt 00:00:22]} Qb6 {[%clk 00:25:02]}
{[%emt 00:00:23]} 22. b3 {[%clk 00:20:15]} {[%emt 00:11:02]} a4 {[%clk
00:25:17]} {[%emt 00:00:13]} 23. Rad1 {[%clk 00:18:38]} {[%emt 00:02:08]} axb3
{[%clk 00:23:48]} {[%emt 00:01:58]} 24. axb3 {[%clk 00:18:59]} {[%emt
00:00:09]} Rad8 {[%clk 00:23:41]} {[%emt 00:00:37]} 25. Rd3 {[%clk 00:16:42]}
{[%emt 00:02:47]} Nb7 {[%clk 00:23:13]} {[%emt 00:00:58]} 26. Rfd1 {[%clk
00:16:41]} {[%emt 00:00:32]} Rxd3 {[%clk 00:23:28]} {[%emt 00:00:15]} 27. Rxd3
{[%clk 00:17:06]} {[%emt 00:00:04]} Rd8 {[%clk 00:23:50]} {[%emt 00:00:08]} 28.
Kg2 {[%clk 00:15:39]} {[%emt 00:01:57]} Rxd3 {[%clk 00:23:43]} {[%emt
00:00:38]} 29. Qxd3 {[%clk 00:16:07]} {[%emt 00:00:02]} Qd8 {[%clk 00:24:00]}
{[%emt 00:00:12]} 30. Qxd8+ {[%clk 00:11:37]} {[%emt 00:05:01]} Nxd8 {[%clk
00:24:24]} {[%emt 00:00:06]} 31. b4 {[%clk 00:11:39]} {[%emt 00:00:28]} cxb4
{[%clk 00:24:33]} {[%emt 00:00:19]} 32. Nxb4 {[%clk 00:12:05]} {[%emt
00:00:06]} Kf7 {[%clk 00:23:38]} {[%emt 00:01:24]} 33. f4 {[%clk 00:10:36]}
{[%emt 00:01:59]} Ke6 {[%clk 00:22:59]} {[%emt 00:01:08]} 34. c5 {[%clk
00:09:05]} {[%emt 00:02:02]} exf4 {[%clk 00:14:43]} {[%emt 00:08:46]} 35. gxf4
{[%clk 00:09:32]} {[%emt 00:00:03]} g5 {[%clk 00:14:59]} {[%emt 00:00:12]} 36.
Kf3 {[%clk 00:09:16]} {[%emt 00:00:47]} gxf4 {[%clk 00:15:08]} {[%emt
00:00:21]} 37. Kxf4 {[%clk 00:09:32]} {[%emt 00:00:13]} Nb7 {[%clk 00:15:15]}
{[%emt 00:00:23]} 38. Nxc6 {[%clk 00:08:47]} {[%emt 00:01:17]} Nxc5 {[%clk
00:15:34]} {[%emt 00:00:10]} 39. Nd4+ {[%clk 00:09:09]} {[%emt 00:00:08]} Kf7
{[%clk 00:15:45]} {[%emt 00:00:18]} 40. Kf5 {[%clk 00:09:14]} {[%emt 00:00:27]}
Nb7 {[%clk 00:10:42]} {[%emt 00:05:31]} 41. Nb5 {[%clk 00:08:29]} {[%emt
00:01:16]} Kg7 {[%clk 00:10:05]} {[%emt 00:01:05]} 42. h3 {[%clk 00:06:36]}
{[%emt 00:02:25]} Kf7 {[%clk 00:10:17]} {[%emt 00:00:17]} 43. h4 {[%clk
00:07:03]} {[%emt 00:00:03]} Kg7 {[%clk 00:10:18]} {[%emt 00:00:27]} 44. h5
{[%clk 00:06:29]} {[%emt 00:01:06]} Kh6 {[%clk 00:09:37]} {[%emt 00:01:09]} 45.
Kxf6 {[%clk 00:06:19]} {[%emt 00:00:42]} Nc5 {[%clk 00:09:36]} {[%emt
00:00:29]} 46. e5 {[%clk 00:06:14]} {[%emt 00:00:37]} Nd7+ {[%clk 00:09:56]}
{[%emt 00:00:08]} 47. Kf5 {[%clk 00:06:30]} {[%emt 00:00:16]} Nxe5 {[%clk
00:10:14]} {[%emt 00:00:13]} 48. Kxe5 {[%clk 00:06:57]} {[%emt 00:00:04]} Kxh5
{[%clk 00:10:31]} {[%emt 00:00:12]} 49. Kf5 {[%clk 00:07:24]} {[%emt 00:00:03]}
Kh4 {[%clk 00:10:37]} {[%emt 00:00:22]} 50. Kf4 {[%clk 00:07:51]} {[%emt
00:00:05]} Kh5 {[%clk 00:10:55]} {[%emt 00:00:11]} 51. Kf5 {[%clk 00:08:19]}
{[%emt 00:00:03]} Kh4 {[%clk 00:11:15]} {[%emt 00:00:10]} 52. Kf4 {[%clk
00:08:47]} {[%emt 00:00:02]} Kh5 {[%clk 00:11:22]} {[%emt 00:00:22]} 53. Nd6
{[%clk 00:09:14]} {[%emt 00:00:04]} Kg6 {[%clk 00:11:35]} {[%emt 00:00:16]} 54.
Ne4 {[%clk 00:09:39]} {[%emt 00:00:07]} h5 {[%clk 00:11:45]} {[%emt 00:00:19]}
55. Kg3 {[%clk 00:10:07]} {[%emt 00:00:03]} h4+ {[%clk 00:12:02]} {[%emt
00:00:12]} 56. Kh3 {[%clk 00:10:34]} {[%emt 00:00:04]} Kf5 {[%clk 00:12:11]}
{[%emt 00:00:20]} 57. Ng3+ {[%clk 00:10:59]} {[%emt 00:00:05]} hxg3 {[%clk
00:12:35]} {[%emt 00:00:07]} 58. Kxg3 {[%clk 00:11:27]} {[%emt 00:00:02]}
1/2-1/2

[Event "SS Manhem Chess Week GM and IM tournaments 2018"]
[Site "Molnlycke kulturhus, Biblioteksgatan 2, Molnlycke, Sweden"]
[Date "2018.08.13"]
[Round "4.7"]
[White "Hobber, Anders"]
[Black "Kucuksari, Kaan"]
[Result "1/2-1/2"]
[TimeControl "90 minutes for 40 moves + 30 minutes for the rest of the game + 30 seconds per move from move one."]
[WhiteTitle "FM"]
[BlackTitle "FM"]
[WhiteFideId "1505424"]
[BlackFideId "6380166"]
[WhiteElo "2314"]
[BlackElo "2329"]

1. d4 {[%clk 01:29:29]} {[%emt 00:01:29]} Nf6 {[%clk 01:30:55]} {[%emt
00:00:06]} 2. Nf3 {[%clk 01:29:25]} {[%emt 00:00:33]} e6 {[%clk 01:31:18]}
{[%emt 00:00:08]} 3. Bf4 {[%clk 01:27:28]} {[%emt 00:02:27]} d5 {[%clk
01:31:38]} {[%emt 00:00:09]} 4. e3 {[%clk 01:27:32]} {[%emt 00:00:26]} c5
{[%clk 01:32:02]} {[%emt 00:00:07]} 5. Nbd2 {[%clk 01:26:38]} {[%emt 00:01:23]}
Nc6 {[%clk 01:32:00]} {[%emt 00:00:32]} 6. c3 {[%clk 01:26:46]} {[%emt
00:00:22]} Bd6 {[%clk 01:32:22]} {[%emt 00:00:08]} 7. Bg3 {[%clk 01:26:38]}
{[%emt 00:00:37]} b6 {[%clk 01:28:21]} {[%emt 00:04:32]} 8. Bb5 {[%clk
01:12:33]} {[%emt 00:14:34]} Qc7 {[%clk 01:27:53]} {[%emt 00:00:59]} 9. Bxd6
{[%clk 01:02:09]} {[%emt 00:10:54]} Qxd6 {[%clk 01:28:16]} {[%emt 00:00:07]} 10.
Ne5 {[%clk 01:01:46]} {[%emt 00:00:52]} Bd7 {[%clk 01:28:32]} {[%emt 00:00:15]}
11. f4 {[%clk 00:58:21]} {[%emt 00:03:54]} cxd4 {[%clk 01:14:49]} {[%emt
00:14:14]} 12. exd4 {[%clk 00:57:11]} {[%emt 00:01:40]} Ne7 {[%clk 01:14:53]}
{[%emt 00:00:26]} 13. Bd3 {[%clk 00:54:57]} {[%emt 00:02:43]} g6 {[%clk
01:11:58]} {[%emt 00:03:26]} 14. O-O {[%clk 00:53:11]} {[%emt 00:02:13]} Nh5
{[%clk 01:07:29]} {[%emt 00:05:01]} 15. Qe2 {[%clk 00:46:42]} {[%emt 00:06:58]}
Kf8 {[%clk 01:06:23]} {[%emt 00:01:37]} 16. Rae1 {[%clk 00:43:33]} {[%emt
00:03:38]} Ng7 {[%clk 01:05:57]} {[%emt 00:00:57]} 17. Qf2 {[%clk 00:40:22]}
{[%emt 00:03:41]} Be8 {[%clk 01:03:05]} {[%emt 00:03:22]} 18. c4 {[%clk
00:15:55]} {[%emt 00:24:57]} dxc4 {[%clk 00:53:38]} {[%emt 00:09:57]} 19. Ndxc4
{[%clk 00:15:50]} {[%emt 00:00:33]} Qd8 {[%clk 00:52:45]} {[%emt 00:01:24]} 20.
Rd1 {[%clk 00:15:32]} {[%emt 00:00:48]} h5 {[%clk 00:50:13]} {[%emt 00:03:03]}
21. Be4 {[%clk 00:14:04]} {[%emt 00:01:57]} Rc8 {[%clk 00:50:31]} {[%emt
00:00:13]} 22. Ne3 {[%clk 00:14:06]} {[%emt 00:00:27]} f6 {[%clk 00:48:39]}
{[%emt 00:02:23]} 23. Nf3 {[%clk 00:12:03]} {[%emt 00:02:32]} Bc6 {[%clk
00:48:30]} {[%emt 00:00:38]} 24. Bc2 {[%clk 00:08:57]} {[%emt 00:03:36]} Kf7
{[%clk 00:42:36]} {[%emt 00:06:25]} 25. Nh4 {[%clk 00:07:58]} {[%emt 00:01:28]}
Ngf5 {[%clk 00:39:51]} {[%emt 00:03:15]} 26. Nhxf5 {[%clk 00:07:29]} {[%emt
00:00:59]} gxf5 {[%clk 00:39:18]} {[%emt 00:01:04]} 27. Bb3 {[%clk 00:06:16]}
{[%emt 00:01:43]} Nd5 {[%clk 00:35:41]} {[%emt 00:04:08]} 28. Rfe1 {[%clk
00:05:56]} {[%emt 00:00:49]} Qd6 {[%clk 00:32:43]} {[%emt 00:03:28]} 29. Nc4
{[%clk 00:05:23]} {[%emt 00:01:03]} Qc7 {[%clk 00:31:09]} {[%emt 00:02:05]} 30.
Ne3 {[%clk 00:04:10]} {[%emt 00:01:42]} Qd6 {[%clk 00:31:34]} {[%emt 00:00:05]}
31. Nc4 {[%clk 00:04:35]} {[%emt 00:00:06]} Qd7 {[%clk 00:31:33]} {[%emt
00:00:31]} 32. Rd2 {[%clk 00:04:24]} {[%emt 00:00:40]} Rcg8 {[%clk 00:27:31]}
{[%emt 00:04:32]} 33. Ne3 {[%clk 00:03:09]} {[%emt 00:01:45]} Qd6 {[%clk
00:20:25]} {[%emt 00:07:36]} 34. Nxd5 {[%clk 00:03:00]} {[%emt 00:00:38]} Bxd5
{[%clk 00:20:50]} {[%emt 00:00:06]} 35. Qe3 {[%clk 00:03:10]} {[%emt 00:00:20]}
Rd8 {[%clk 00:17:40]} {[%emt 00:03:41]} 36. Bd1 {[%clk 00:02:57]} {[%emt
00:00:42]} h4 {[%clk 00:15:09]} {[%emt 00:03:01]} 37. Be2 {[%clk 00:02:46]}
{[%emt 00:00:41]} Rhg8 {[%clk 00:05:33]} {[%emt 00:10:06]} 38. Bh5+ {[%clk
00:02:54]} {[%emt 00:00:22]} Ke7 {[%clk 00:05:04]} {[%emt 00:01:00]} 39. Bf3
{[%clk 00:02:17]} {[%emt 00:01:07]} Kf7 {[%clk 00:03:19]} {[%emt 00:02:15]} 40.
Bh5+ {[%clk 00:01:50]} {[%emt 00:00:56]} Kf8 {[%clk 00:01:58]} {[%emt
00:01:52]} 41. Bf3 {[%clk 00:28:57]} {[%emt 00:03:23]} Bxf3 {[%clk 00:28:42]}
{[%emt 00:03:46]} 42. Qxf3 {[%clk 00:29:12]} {[%emt 00:00:15]} Rg4 {[%clk
00:29:10]} {[%emt 00:00:02]} 43. h3 {[%clk 00:24:40]} {[%emt 00:05:02]} Rxf4
{[%clk 00:20:41]} {[%emt 00:09:00]} 44. Rxe6 {[%clk 00:23:47]} {[%emt
00:01:22]} Rxf3 {[%clk 00:21:05]} {[%emt 00:00:06]} 45. Rxd6 {[%clk 00:24:11]}
{[%emt 00:00:06]} Rxd6 {[%clk 00:21:20]} {[%emt 00:00:16]} 46. gxf3 {[%clk
00:24:22]} {[%emt 00:00:19]} f4 {[%clk 00:11:57]} {[%emt 00:09:52]} 47. d5
{[%clk 00:20:50]} {[%emt 00:04:02]} Kg7 {[%clk 00:08:35]} {[%emt 00:03:53]} 48.
Rd4 {[%clk 00:15:59]} {[%emt 00:05:20]} f5 {[%clk 00:08:36]} {[%emt 00:00:29]}
49. Rxf4 {[%clk 00:11:05]} {[%emt 00:05:24]} Rxd5 {[%clk 00:08:55]} {[%emt
00:00:11]} 50. Rxh4 {[%clk 00:09:54]} {[%emt 00:01:41]} Rd1+ {[%clk 00:06:24]}
{[%emt 00:03:01]} 51. Kf2 {[%clk 00:10:19]} {[%emt 00:00:04]} Rd2+ {[%clk
00:06:51]} {[%emt 00:00:03]} 52. Kg3 {[%clk 00:07:22]} {[%emt 00:03:27]} Rxb2
{[%clk 00:07:14]} {[%emt 00:00:08]} 53. a4 {[%clk 00:07:03]} {[%emt 00:00:48]}
a5 {[%clk 00:06:12]} {[%emt 00:01:33]} 54. Rc4 {[%clk 00:07:30]} {[%emt
00:00:03]} Kf6 {[%clk 00:06:26]} {[%emt 00:00:16]} 55. h4 {[%clk 00:06:55]}
{[%emt 00:01:04]} Rb4 {[%clk 00:04:50]} {[%emt 00:02:06]} 56. Rc6+ {[%clk
00:07:15]} {[%emt 00:00:11]} Kg7 {[%clk 00:05:11]} {[%emt 00:00:09]} 57. h5
{[%clk 00:06:59]} {[%emt 00:00:46]} Kh7 {[%clk 00:02:21]} {[%emt 00:03:21]}
1/2-1/2

[Event "SS Manhem Chess Week GM and IM tournaments 2018"]
[Site "Molnlycke kulturhus, Biblioteksgatan 2, Molnlycke, Sweden"]
[Date "2018.08.13"]
[Round "4.8"]
[White "Storme, Isak"]
[Black "Pantzar, Milton"]
[Result "1/2-1/2"]
[TimeControl "90 minutes for 40 moves + 30 minutes for the rest of the game + 30 seconds per move from move one."]
[WhiteTitle "FM"]
[BlackTitle "FM"]
[WhiteFideId "1728113"]
[BlackFideId "1721003"]
[WhiteElo "2279"]
[BlackElo "2306"]

1. d4 {[%clk 01:30:57]} {[%emt 00:00:03]} Nf6 {[%clk 01:30:51]} {[%emt
00:00:09]} 2. c4 {[%clk 01:31:14]} {[%emt 00:00:13]} e6 {[%clk 01:31:11]}
{[%emt 00:00:10]} 3. Nc3 {[%clk 01:31:38]} {[%emt 00:00:06]} Bb4 {[%clk
01:31:35]} {[%emt 00:00:07]} 4. Qc2 {[%clk 01:31:56]} {[%emt 00:00:11]} O-O
{[%clk 01:31:52]} {[%emt 00:00:14]} 5. Nf3 {[%clk 01:31:02]} {[%emt 00:01:24]}
c5 {[%clk 01:32:08]} {[%emt 00:00:14]} 6. dxc5 {[%clk 01:31:26]} {[%emt
00:00:06]} Na6 {[%clk 01:32:30]} {[%emt 00:00:08]} 7. g3 {[%clk 01:31:44]}
{[%emt 00:00:11]} Nxc5 {[%clk 01:32:52]} {[%emt 00:00:08]} 8. Bg2 {[%clk
01:32:03]} {[%emt 00:00:10]} Nce4 {[%clk 01:32:51]} {[%emt 00:00:31]} 9. O-O
{[%clk 01:27:25]} {[%emt 00:05:08]} Nxc3 {[%clk 01:32:57]} {[%emt 00:00:25]} 10.
bxc3 {[%clk 01:27:47]} {[%emt 00:00:08]} Be7 {[%clk 01:33:18]} {[%emt
00:00:08]} 11. e4 {[%clk 01:28:01]} {[%emt 00:00:16]} d6 {[%clk 01:33:41]}
{[%emt 00:00:08]} 12. e5 {[%clk 01:27:36]} {[%emt 00:00:55]} dxe5 {[%clk
01:33:58]} {[%emt 00:00:13]} 13. Nxe5 {[%clk 01:27:56]} {[%emt 00:00:09]} Qc7
{[%clk 01:34:19]} {[%emt 00:00:09]} 14. Qe2 {[%clk 01:27:35]} {[%emt 00:00:50]}
Bd6 {[%clk 01:34:37]} {[%emt 00:00:12]} 15. Bf4 {[%clk 01:25:19]} {[%emt
00:02:45]} Ne8 {[%clk 01:29:24]} {[%emt 00:05:44]} 16. c5 {[%clk 01:17:29]}
{[%emt 00:08:20]} Qxc5 {[%clk 01:29:29]} {[%emt 00:00:25]} 17. c4 {[%clk
01:11:24]} {[%emt 00:06:35]} Qc7 {[%clk 01:18:35]} {[%emt 00:11:24]} 18. Rab1
{[%clk 01:00:59]} {[%emt 00:10:54]} f6 {[%clk 01:05:00]} {[%emt 00:14:06]} 19.
Nd3 {[%clk 01:01:09]} {[%emt 00:00:19]} Rb8 {[%clk 01:04:59]} {[%emt 00:00:32]}
20. c5 {[%clk 00:56:29]} {[%emt 00:05:10]} Bxf4 {[%clk 01:04:53]} {[%emt
00:00:37]} 21. Nxf4 {[%clk 00:56:52]} {[%emt 00:00:07]} Qxc5 {[%clk 01:03:19]}
{[%emt 00:02:04]} 22. Nxe6 {[%clk 00:56:17]} {[%emt 00:01:05]} Qe7 {[%clk
01:01:15]} {[%emt 00:02:34]} 23. Rfe1 {[%clk 00:53:12]} {[%emt 00:03:34]} Bxe6
{[%clk 01:00:31]} {[%emt 00:01:16]} 24. Qxe6+ {[%clk 00:53:33]} {[%emt
00:00:09]} Qxe6 {[%clk 01:00:55]} {[%emt 00:00:06]} 25. Rxe6 {[%clk 00:53:53]}
{[%emt 00:00:10]} Rf7 {[%clk 01:00:06]} {[%emt 00:01:19]} 26. Bxb7 {[%clk
00:52:16]} {[%emt 00:02:07]} Rfxb7 {[%clk 00:59:22]} {[%emt 00:01:16]} 27.
Rxe8+ {[%clk 00:52:20]} {[%emt 00:00:24]} Rxe8 {[%clk 00:59:47]} {[%emt
00:00:05]} 28. Rxb7 {[%clk 00:52:37]} {[%emt 00:00:13]} a5 {[%clk 00:59:53]}
{[%emt 00:00:25]} 29. Rb5 {[%clk 00:48:43]} {[%emt 00:04:23]} Re5 {[%clk
00:59:05]} {[%emt 00:01:17]} 30. Rxe5 {[%clk 00:47:14]} {[%emt 00:01:59]} fxe5
{[%clk 00:59:25]} {[%emt 00:00:11]} 31. Kg2 {[%clk 00:46:53]} {[%emt 00:00:51]}
Kf7 {[%clk 00:59:33]} {[%emt 00:00:22]} 32. Kf3 {[%clk 00:46:31]} {[%emt
00:00:51]} Ke6 {[%clk 00:59:18]} {[%emt 00:00:45]} 33. Ke4 {[%clk 00:46:55]}
{[%emt 00:00:07]} Kd6 {[%clk 00:59:09]} {[%emt 00:00:39]} 34. h4 {[%clk
00:41:29]} {[%emt 00:05:56]} Ke6 {[%clk 00:43:37]} {[%emt 00:16:01]} 1/2-1/2